bitfinex/quotes_SOLUSD_20250930
["timestamp","ask_amount","ask_price","bid_price","bid_amount"]
[1759251014371,0.48861526,205.17,205.1,35.75]
[1759251014603,21.49,205.18,205.11,0.71]
[1759251016391,20.8,205.21,205.13,0.71]
[1759251016582,20.8,205.2,205.13,0.71]
[1759251017105,20.8,205.21,205.13,0.71]
[1759251017287,20.8,205.21,205.14,17.06151895]
[1759251017481,20.8,205.21,205.15,35.02]
[1759251017895,21.5,205.21,205.15,35.02]
[1759251018297,0.7,205.2,205.13,4.87493677]
[1759251018497,0.7,205.19,205.14,35.0]
[1759251018691,30.68040428,205.21,205.13,4.87493677]
[1759251018692,0.7,205.18,205.13,4.87493677]
[1759251018901,0.48861526,205.19,205.14,35.0]
[1759251019086,5.21851854,205.17,205.09,4.87573526]
[1759251019404,4.87448208,205.15,205.1,35.0]
[1759251019585,4.87448208,205.15,205.06,4.87642953]
[1759251019586,0.7,205.14,205.06,4.87642953]
[1759251019788,1.18861526,205.13,205.07,35.04]
[1759251020404,0.7,205.12,205.07,35.04]
[1759251020598,0.7,205.11,205.07,35.04]
[1759251020806,0.7,205.1,205.07,35.04]
[1759251021908,0.7,205.1,205.05,4.87663714]
[1759251022116,0.7,205.09,205.08,35.02]
[1759251022710,0.7,205.13,205.08,35.02]
[1759251022907,0.48861526,205.14,205.08,35.02]
[1759251023217,0.48861526,205.14,205.09,0.69]
[1759251023410,5.36309734,205.15,205.09,0.69]
[1759251023720,5.36309734,205.15,205.08,39.89602948]
[1759251023721,10.55161588,205.15,205.08,39.89602948]
[1759251024024,5.18851854,205.14,205.08,35.02]
[1759251024311,17.54930255,205.15,205.05,12.19214825]
[1759251024312,5.6771338,205.13,205.09,35.02]
[1759251024520,0.67,205.12,205.09,35.02]
[1759251024712,5.0071338,205.13,205.09,35.02]
[1759251024906,0.67,205.11,205.09,35.02]
[1759251025092,0.67,205.1,205.09,35.02]
[1759251025721,4.51851854,205.11,205.09,35.02]
[1759251025898,4.87519657,205.12,205.09,35.02]
[1759251026097,4.87498352,205.13,205.09,35.02]
[1759251026298,20.8,205.14,205.1,0.69]
[1759251026528,21.47,205.14,205.09,39.89581909]
[1759251026697,21.47,205.14,205.09,40.58581909]
[1759251027899,20.8,205.14,205.09,39.89581909]
[1759251028103,20.8,205.14,205.1,0.69]
[1759251028301,20.8,205.14,205.11,0.69]
[1759251028506,21.47,205.14,205.09,39.89581909]
[1759251028822,20.8,205.14,205.1,0.69]
[1759251029896,20.8,205.14,205.1,5.5654962]
[1759251030216,1.15861526,205.17,205.1,4.8754962]
[1759251030525,4.87397595,205.18,205.1,4.8754962]
[1759251030526,0.48861526,205.21,205.11,0.69]
[1759251030695,8.12021905,205.22,205.11,0.69]
[1759251030696,0.48861526,205.22,205.12,13.59559401]
[1759251030896,5.6771338,205.22,205.13,35.67]
[1759251031604,5.6771338,205.22,205.13,34.98]
[1759251031806,5.6771338,205.22,205.14,0.69]
[1759251032112,10.5499653,205.22,205.15,4.87448208]
[1759251033010,0.48861526,205.22,205.15,17.06068729]
[1759251033216,18.51013452,205.28,205.16,0.69]
[1759251033217,0.67,205.24,205.16,0.69]
[1759251033521,1.15861526,205.24,205.16,0.69]
[1759251033717,5.6771338,205.24,205.16,0.69]
[1759251034429,31.34962687,205.24,205.17,4.87400692]
[1759251034723,26.83110833,205.24,205.18,34.96]
[1759251034919,5.18851854,205.27,205.19,0.69]
[1759251035124,1.15861526,205.27,205.19,0.69]
[1759251035307,20.8,205.25,205.19,0.69]
[1759251035506,3.25802506,205.29,205.2,13.59559401]
[1759251035708,10.05971683,205.29,205.21,0.69]
[1759251035913,30.85971683,205.29,205.21,0.69]
[1759251036114,0.48861526,205.28,205.21,0.69]
[1759251036418,4.51851854,205.27,205.22,34.98]
[1759251036605,5.18851854,205.27,205.22,34.98]
[1759251037217,10.06028148,205.27,205.22,34.98]
[1759251037421,21.47,205.27,205.22,39.85273663]
[1759251037621,20.8,205.27,205.22,40.54273663]
[1759251038120,20.8,205.27,205.22,54.87876186]
[1759251038908,21.47,205.27,205.22,54.87876186]
[1759251039109,26.34172961,205.27,205.22,35.67]
[1759251039319,26.34172961,205.27,205.22,40.54275377]
[1759251039820,26.34172961,205.27,205.22,35.67]
[1759251040001,5.6771338,205.26,205.17,0.69]
[1759251040198,4.51851854,205.24,205.18,34.94]
[1759251040410,0.67,205.24,205.18,14.99597328]
[1759251040610,0.67,205.24,205.19,34.96]
[1759251041034,0.67,205.24,205.19,39.83351743]
[1759251041327,4.87231508,205.25,205.2,34.94]
[1759251041529,0.48861526,205.26,205.2,34.94]
[1759251041530,9.39040571,205.26,205.2,35.63]
[1759251041712,0.67,205.25,205.2,34.94]
[1759251042214,11.54876151,205.26,205.2,34.94]
[1759251042413,7.34684305,205.24,205.21,34.96]
[1759251042635,0.67,205.23,205.21,34.96]
[1759251043226,6.67684305,205.24,205.21,34.96]
[1759251043427,7.34684305,205.24,205.21,34.96]
[1759251044113,0.67,205.23,205.22,34.94]
[1759251044934,25.67186494,205.27,205.22,34.94]
[1759251045114,0.67,205.26,205.22,34.94]
[1759251045314,5.54197809,205.26,205.22,34.94]
[1759251046828,12.21882114,205.26,205.22,34.94]
[1759251048938,4.87197809,205.26,205.22,34.94]
[1759251049651,5.54197809,205.26,205.22,34.94]
[1759251049950,12.21882114,205.26,205.22,34.94]
[1759251050132,5.54197809,205.26,205.22,34.94]
[1759251050329,12.21882114,205.26,205.22,34.94]
[1759251050555,25.67166923,205.27,205.22,34.94]
[1759251050853,32.34851228,205.27,205.23,0.69]
[1759251051052,32.34851228,205.27,205.22,34.94]
[1759251051347,33.01851228,205.27,205.22,35.63]
[1759251051733,7.34684305,205.26,205.22,34.94]
[1759251051920,7.34684305,205.25,205.18,20.40602705]
[1759251052318,7.34684305,205.25,205.19,0.69]
[1759251052539,7.34684305,205.25,205.2,34.88]
[1759251052719,6.67684305,205.25,205.19,0.69]
[1759251052940,6.67684305,205.25,205.18,14.84229602]
[1759251052941,6.67684305,205.2,205.13,4.87474901]
[1759251053142,0.71,205.2,205.14,34.88]
[1759251053452,7.38684305,205.2,205.14,34.88]
[1759251053648,38.24,205.48,205.11,38.04]
[1759251053649,6.67684305,205.17,205.11,38.04]
[1759251053840,6.67684305,205.18,205.12,35.59]
[1759251054151,7.38684305,205.18,205.12,35.59]
[1759251054542,6.67684305,205.17,205.12,34.88]
[1759251054846,5.36216166,205.19,205.13,0.71]
[1759251055032,12.03900471,205.19,205.13,0.71]
[1759251055231,11.55038945,205.19,205.13,0.71]
[1759251055434,4.87332456,205.2,205.13,15.47393262]
[1759251055637,20.8,205.19,205.15,4.87448208]
[1759251055833,20.8,205.19,205.16,35.61]
[1759251056035,0.71,205.22,205.16,35.61]
[1759251056249,5.58214155,205.25,205.17,0.71]
[1759251056445,4.87214155,205.25,205.17,0.71]
[1759251056655,20.8,205.23,205.17,0.71]
[1759251056835,4.87214155,205.25,205.17,0.71]
[1759251057423,20.8,205.23,205.18,4.87376937]
[1759251057947,4.87214155,205.25,205.19,0.71]
[1759251058131,20.8,205.23,205.2,34.88]
[1759251060658,7.38684305,205.22,205.2,34.88]
[1759251060950,0.71,205.24,205.2,34.88]
[1759251061263,21.51,205.27,205.21,0.71]
[1759251061427,4.87191366,205.26,205.2,34.88]
[1759251061625,5.58191366,205.26,205.2,34.88]
[1759251062040,7.38684305,205.25,205.21,34.88]
[1759251062253,20.8,205.23,205.22,34.88]
[1759251062944,28.18684305,205.23,205.15,0.71]
[1759251063153,0.71,205.23,205.16,39.75424449]
[1759251063545,0.71,205.23,205.16,40.46424449]
[1759251063742,0.71,205.23,205.16,52.64985572]
[1759251063947,4.87255117,205.24,205.17,0.71]
[1759251064135,0.71,205.25,205.17,0.71]
[1759251065047,12.74761525,205.25,205.18,4.87376937]
[1759251065841,7.38684305,205.24,205.17,5.58398086]
[1759251066039,17.54104016,205.25,205.18,34.86]
[1759251066040,7.38684305,205.23,205.18,34.86]
[1759251066256,0.71,205.22,205.18,34.86]
[1759251066582,17.54104016,205.25,205.18,34.86]
[1759251066762,17.54104016,205.25,205.19,0.71]
[1759251066763,7.53495952,205.25,205.19,0.71]
[1759251067074,4.87215694,205.25,205.19,0.71]
[1759251068140,4.87215694,205.25,205.19,5.58344072]
[1759251068536,1.19861526,205.24,205.18,34.86]
[1759251068856,2.66280258,205.22,205.19,34.86]
[1759251069058,0.71,205.21,205.19,34.86]
[1759251069363,4.87249712,205.24,205.19,34.86]
[1759251069662,5.58249712,205.24,205.19,34.86]
[1759251070261,5.58249712,205.24,205.19,39.73351879]
[1759251070457,5.58249712,205.24,205.19,39.73345948]
[1759251071573,5.58249712,205.24,205.19,34.86]
[1759251071738,0.71,205.23,205.19,34.86]
[1759251072132,7.5352997,205.24,205.19,39.7334905]
[1759251072337,4.87249712,205.24,205.19,40.4434905]
[1759251072551,29.04488374,205.26,205.2,0.71]
[1759251072750,26.38208116,205.26,205.2,0.71]
[1759251073262,20.8,205.24,205.2,0.71]
[1759251073639,20.8,205.24,205.21,5.58285331]
[1759251074538,20.8,205.24,205.21,4.87285331]
[1759251074753,20.8,205.24,205.21,5.58285331]
[1759251075054,20.8,205.24,205.2,4.87329434]
[1759251075241,20.8,205.24,205.22,0.71]
[1759251075436,20.8,205.24,205.23,34.86]
[1759251075846,20.8,205.23,205.17,13.59559401]
[1759251076165,32.30570989,205.24,205.18,34.86]
[1759251076343,29.04514715,205.24,205.18,34.86]
[1759251077258,29.04514715,205.24,205.18,39.73375933]
[1759251077648,26.38234457,205.24,205.18,39.73375933]
[1759251077853,29.04514715,205.24,205.18,39.73375933]
[1759251078462,3.81141784,205.23,205.18,34.86]
[1759251078665,2.66280258,205.22,205.15,4.87448208]
[1759251078972,3.32280258,205.22,205.16,34.86]
[1759251079159,0.66,205.21,205.16,34.86]
[1759251079669,24.06056274,205.24,205.17,0.72]
[1759251079852,20.8,205.24,205.17,14.31559401]
[1759251080058,20.8,205.24,205.18,0.72]
[1759251080369,20.8,205.24,205.19,4.87353184]
[1759251080565,20.8,205.24,205.2,35.58]
[1759251081367,20.8,205.24,205.2,34.86]
[1759251081551,21.46,205.24,205.2,34.86]
[1759251081861,0.66,205.23,205.18,4.87371725]
[1759251082050,0.66,205.23,205.19,34.86]
[1759251082051,0.66,205.22,205.19,34.86]
[1759251082250,0.66,205.21,205.2,34.86]
[1759251082846,27.87198058,205.24,205.2,34.86]
[1759251083053,20.8,205.24,205.2,39.73320078]
[1759251083355,20.8,205.24,205.21,0.72]
[1759251083549,20.8,205.24,205.2,39.73320078]
[1759251083749,20.8,205.24,205.2,40.45320078]
[1759251084162,20.8,205.24,205.2,39.73320078]
[1759251084563,5.92336532,205.26,205.2,39.73320078]
[1759251084564,3.26056274,205.26,205.21,0.72]
[1759251084873,3.749178,205.29,205.21,0.72]
[1759251085068,3.26056274,205.29,205.21,0.72]
[1759251085955,8.13175328,205.29,205.21,0.72]
[1759251086478,2.66280258,205.28,205.22,4.87281941]
[1759251086684,2.66280258,205.26,205.23,34.86]
[1759251086979,0.7,205.25,205.23,34.86]
[1759251088062,2.66280258,205.27,205.23,34.86]
[1759251088251,0.7,205.26,205.23,34.86]
[1759251089269,3.749178,205.28,205.23,39.73249125]
[1759251089270,3.96056274,205.28,205.23,39.73249125]
[1759251089580,0.7,205.28,205.23,40.45249125]
[1759251090546,28.33400872,205.29,205.23,40.45249125]
[1759251091087,12.17671914,205.31,205.23,40.45249125]
[1759251091088,3.26056274,205.31,205.24,0.72]
[1759251091258,1.38861526,205.32,205.24,0.72]
[1759251091651,0.2,205.32,205.25,13.59559401]
[1759251091874,0.2,205.32,205.26,0.72]
[1759251092073,0.2,205.32,205.27,34.86]
[1759251092274,0.2,205.32,205.28,0.72]
[1759251093059,0.2,205.32,205.28,4.8713843]
[1759251093482,0.7,205.31,205.27,34.86]
[1759251093864,5.0704483,205.32,205.27,35.58]
[1759251094075,5.7704483,205.32,205.27,0.72]
[1759251094278,5.7704483,205.32,205.28,34.86]
[1759251098460,0.9,205.32,205.28,39.73136562]
[1759251098661,0.2,205.32,205.28,39.73136562]
[1759251098968,0.2,205.32,205.28,40.45136562]
[1759251099685,0.2,205.32,205.29,0.72]
[1759251099866,0.2,205.32,205.3,0.72]
[1759251100380,0.2,205.32,205.28,39.73136562]
[1759251100590,0.2,205.32,205.31,0.72]
[1759251100766,0.2,205.32,205.31,35.56]
[1759251101791,0.2,205.32,205.31,40.43068335]
[1759251104988,0.2,205.32,205.31,5.59068335]
[1759251105191,0.2,205.32,205.31,39.71068335]
[1759251106877,0.2,205.32,205.31,54.69752958]
[1759251114604,0.2,205.32,205.31,49.10684623]
[1759251115074,0.2,205.32,205.31,53.97752958]
[1759251115277,0.2,205.32,205.31,54.66752958]
[1759251116600,0.2,205.32,205.31,53.97752958]
[1759251116792,0.2,205.32,205.31,54.66752958]
[1759251117393,0.2,205.32,205.31,53.97752958]
[1759251117902,0.2,205.32,205.31,68.54744673]
[1759251119313,0.2,205.32,205.31,89.34744673]
[1759251119903,0.2,205.35,205.32,13.87991715]
[1759251120085,0.2,205.35,205.34,13.87991715]
[1759251120485,0.2,205.35,205.34,14.56991715]
[1759251120697,1e-08,205.35,205.34,14.56991715]
[1759251121191,1e-08,205.35,205.34,19.4398889]
[1759251122003,1e-08,205.35,205.34,54.2598889]
[1759251125904,1e-08,205.35,205.34,75.9598889]
[1759251126103,1e-08,205.35,205.34,77.90963421]
[1759251126488,1e-08,205.35,205.34,75.2698889]
[1759251126679,1e-08,205.35,205.34,41.1398889]
[1759251126882,1e-08,205.35,205.34,75.9398889]
[1759251127304,1e-08,205.35,205.34,75.2498889]
[1759251127813,0.72000001,205.35,205.34,39.66997175]
[1759251128113,0.72000001,205.35,205.32,38.0]
[1759251128320,0.72,205.34,205.33,34.8]
[1759251129298,0.72,205.34,205.32,38.0]
[1759251129513,0.72,205.33,205.32,38.0]
[1759251129815,0.72,205.33,205.32,72.8]
[1759251130316,1e-08,205.35,205.32,39.67044613]
[1759251130317,0.72000001,205.35,205.32,39.67044613]
[1759251130516,0.72000001,205.35,205.33,13.59559401]
[1759251130517,1e-08,205.35,205.33,13.59559401]
[1759251130817,1e-08,205.35,205.34,48.67991715]
[1759251131010,1e-08,205.35,205.34,49.36991715]
[1759251132195,1e-08,205.35,205.34,54.2398889]
[1759251133498,0.2,205.41,205.34,54.2398889]
[1759251133499,0.2,205.41,205.35,13.87991715]
[1759251133700,0.2,205.41,205.36,35.08432314]
[1759251134308,0.72,205.39,205.33,1.94984035]
[1759251134485,0.72,205.38,205.34,46.97453025]
[1759251135815,0.72,205.39,205.34,46.97453025]
[1759251136015,0.72,205.38,205.34,46.97453025]
[1759251136610,0.72,205.38,205.34,51.844502]
[1759251136807,0.92,205.4,205.34,52.534502]
[1759251137205,0.92,205.4,205.34,51.844502]
[1759251138838,0.92,205.4,205.35,13.87991715]
[1759251139003,0.92,205.4,205.36,34.8]
[1759251139633,0.2,205.4,205.36,34.8]
[1759251139833,0.2,205.4,205.36,35.5]
[1759251140208,0.92,205.4,205.36,34.8]
[1759251140815,0.92,205.4,205.37,17.04241124]
[1759251141022,0.92,205.4,205.38,34.8]
[1759251141418,0.2,205.4,205.38,34.8]
[1759251141833,0.92,205.4,205.38,34.8]
[1759251142334,0.2,205.4,205.38,34.8]
[1759251142957,0.2,205.4,205.39,4.86878621]
[1759251145816,0.87,205.4,205.39,4.86878621]
[1759251146220,0.2,205.4,205.39,4.86878621]
[1759251146616,0.2,205.4,205.39,19.46870336]
[1759251148723,1e-08,205.41,205.39,19.46870336]
[1759251148949,1e-08,205.41,205.4,36.00685491]
[1759251149442,0.87,205.46,205.41,13.87991715]
[1759251149638,0.87,205.46,205.42,34.78]
[1759251149935,0.2,205.46,205.42,34.78]
[1759251150138,0.87,205.46,205.42,34.78]
[1759251150644,0.87,205.46,205.43,17.03743367]
[1759251150942,0.87,205.46,205.44,34.78]
[1759251151238,0.2,205.46,205.44,34.78]
[1759251151831,0.87,205.46,205.44,34.78]
[1759251152721,0.87,205.46,205.45,4.86736432]
[1759251152931,0.2,205.46,205.45,4.86736432]
[1759251153548,0.87,205.46,205.45,4.86736432]
[1759251153749,0.2,205.46,205.45,4.86736432]
[1759251153944,0.1,205.47,205.45,5.58736432]
[1759251154141,0.1,205.47,205.46,35.5]
[1759251154738,0.1,205.47,205.46,54.24704457]
[1759251156866,0.1,205.47,205.46,40.65145056]
[1759251157851,0.1,205.47,205.46,53.52704457]
[1759251158752,0.1,205.47,205.46,54.24704457]
[1759251159759,0.2,205.48,205.47,13.87991715]
[1759251159963,0.2,205.48,205.47,19.46680769]
[1759251159964,1e-08,205.48,205.47,19.46680769]
[1759251160856,0.1,205.5,205.47,31.63403404]
[1759251161054,0.1,205.5,205.49,13.87991715]
[1759251161462,0.1,205.5,205.49,14.59991715]
[1759251161847,0.2,205.52,205.51,13.87991715]
[1759251162061,0.2,205.52,205.51,48.63991715]
[1759251164201,0.2,205.52,205.51,53.50586041]
[1759251171485,0.87,205.52,205.51,34.76]
[1759251171785,3.52350339,205.52,205.51,34.76]
[1759251172570,0.87,205.52,205.51,34.76]
[1759251175277,3.52350339,205.52,205.51,34.76]
[1759251175875,0.87,205.52,205.51,34.76]
[1759251176684,0.87,205.52,205.51,39.62594326]
[1759251177385,0.87,205.52,205.51,34.76]
[1759251177573,0.87,205.52,205.51,39.62594326]
[1759251180182,0.2,205.52,205.51,39.62594326]
[1759251180487,0.2,205.52,205.51,54.18586041]
[1759251180682,0.2,205.52,205.51,34.74]
[1759251180683,0.89,205.52,205.51,34.74]
[1759251180983,0.2,205.52,205.51,39.60594326]
[1759251181289,0.89,205.52,205.51,39.60594326]
[1759251181871,0.2,205.52,205.51,39.60594326]
[1759251182190,0.2,205.52,205.51,40.28594326]
[1759251182390,0.2,205.52,205.51,39.60594326]
[1759251183288,0.2,205.52,205.51,40.28594326]
[1759251183474,0.2,205.52,205.51,54.16586041]
[1759251183870,0.1,205.53,205.52,13.87991715]
[1759251184087,0.1,205.53,205.52,14.55991715]
[1759251186293,0.1,205.53,205.52,19.42562365]
[1759251186586,1e-08,205.53,205.52,19.42562365]
[1759251186787,0.1,205.61,205.52,19.42562365]
[1759251186788,0.1,205.61,205.56,13.87991715]
[1759251187093,0.1,205.61,205.58,13.87991715]
[1759251187297,0.1,205.61,205.59,34.74]
[1759251187593,0.1,205.61,205.59,35.42]
[1759251188367,0.1,205.61,205.6,4.86381322]
[1759251189094,0.1,205.61,205.6,19.19671155]
[1759251190681,0.1,205.61,205.6,33.0766287]
[1759251191289,0.79,205.61,205.6,19.19671155]
[1759251191489,0.79,205.61,205.6,34.72]
[1759251192894,3.44350339,205.61,205.6,34.72]
[1759251193094,8.30708006,205.61,205.6,34.72]
[1759251193796,29.10708006,205.61,205.6,34.72]
[1759251194913,41.26602174,205.61,205.49,4.86641685]
[1759251195113,2.65350339,205.55,205.49,4.86641685]
[1759251195317,0.69,205.54,205.5,34.72]
[1759251195478,0.69,205.53,205.5,34.72]
[1759251195679,0.69,205.52,205.5,34.72]
[1759251196412,2.65350339,205.54,205.5,34.72]
[1759251196583,0.69,205.53,205.5,54.39803726]
[1759251197000,23.45350339,205.56,205.5,54.39803726]
[1759251197285,3.34350339,205.55,205.5,54.39803726]
[1759251197597,0.66,205.54,205.5,54.39803726]
[1759251197806,0.66,205.53,205.5,54.39803726]
[1759251198009,0.66,205.53,205.51,34.72]
[1759251198412,0.66,205.53,205.51,39.58582652]
[1759251198611,0.66,205.56,205.51,40.27582652]
[1759251199207,0.66,205.56,205.51,51.75068467]
[1759251199395,0.66,205.58,205.52,0.69]
[1759251200322,0.66,205.58,205.53,4.86546976]
[1759251200622,0.66,205.57,205.54,34.72]
[1759251201393,0.66,205.59,205.54,35.41]
[1759251201619,3.31350339,205.59,205.54,35.41]
[1759251201791,0.66,205.58,205.54,34.72]
[1759251201995,3.31350339,205.57,205.54,34.72]
[1759251202194,2.65350339,205.55,205.54,34.72]
[1759251202500,3.31350339,205.55,205.54,34.72]
[1759251202707,2.65350339,205.55,205.54,34.72]
[1759251202909,2.65350339,205.56,205.54,34.72]
[1759251203107,3.37350339,205.55,205.5,14.81187736]
[1759251203307,3.37350339,205.54,205.51,34.72]
[1759251203609,0.72,205.53,205.52,34.72]
[1759251203813,3.37350339,205.53,205.52,34.72]
[1759251204196,8.23897315,205.53,205.52,34.72]
[1759251204599,0.72,205.53,205.52,34.72]
[1759251204833,2.65350339,205.55,205.52,34.72]
[1759251204995,3.37350339,205.55,205.52,34.72]
[1759251205193,0.72,205.54,205.52,34.72]
[1759251205409,0.72,205.53,205.52,34.72]
[1759251206123,8.23852356,205.55,205.52,34.72]
[1759251206322,0.72,205.54,205.52,34.72]
[1759251206617,7.51852356,205.55,205.52,34.72]
[1759251206826,0.72,205.54,205.52,34.72]
[1759251207913,0.72,205.54,205.5,14.77754804]
[1759251208226,2.65350339,205.51,205.42,0.65]
[1759251208402,2.65350339,205.45,205.39,5.5147665]
[1759251208605,18.24024542,205.5,205.4,34.72]
[1759251208799,18.24024542,205.5,205.41,0.65]
[1759251208800,0.72,205.49,205.41,0.65]
[1759251209008,2.65620991,205.48,205.41,3.30620991]
[1759251209251,2.65620991,205.48,205.42,2.65620991]
[1759251209421,0.72,205.47,205.39,14.77815189]
[1759251209600,0.72,205.47,205.36,14.62237711]
[1759251209601,2.65620991,205.4,205.36,14.62237711]
[1759251209802,2.65620991,205.38,205.37,34.72]
[1759251210613,5.58891117,205.39,205.37,34.72]
[1759251210614,0.72,205.39,205.37,34.72]
[1759251210809,2.65620991,205.4,205.37,35.37]
[1759251211138,0.72,205.42,205.37,40.23920283]
[1759251211139,3.37620991,205.42,205.37,40.23920283]
[1759251211436,0.48861526,205.45,205.37,40.23920283]
[1759251211437,3.37620991,205.41,205.37,34.72]
[1759251211633,3.37620991,205.41,205.37,39.58925915]
[1759251212004,20.8,205.4,205.37,34.72]
[1759251212322,2.65620991,205.39,205.37,34.72]
[1759251212532,2.65620991,205.38,205.37,34.72]
[1759251212714,3.37620991,205.38,205.37,34.72]
[1759251214428,8.24523318,205.38,205.37,34.72]
[1759251214939,5.58902327,205.38,205.37,34.72]
[1759251215124,8.24523318,205.38,205.37,34.72]
[1759251216033,0.72,205.38,205.37,34.72]
[1759251216234,8.24523318,205.38,205.37,34.72]
[1759251216619,2.65620991,205.38,205.37,34.72]
[1759251217508,3.37620991,205.38,205.37,34.72]
[1759251218110,2.65620991,205.38,205.37,34.72]
[1759251219928,20.8,205.38,205.37,34.72]
[1759251220129,23.45620991,205.38,205.37,34.72]
[1759251220821,2.65620991,205.38,205.37,34.72]
[1759251221407,0.72,205.4,205.37,34.72]
[1759251221737,20.8,205.39,205.37,34.72]
[1759251222115,2.65620991,205.38,205.37,34.72]
[1759251223022,20.8,205.39,205.37,34.72]
[1759251223233,0.72,205.4,205.37,34.72]
[1759251223234,2.65620991,205.38,205.37,34.72]
[1759251223726,2.65620991,205.39,205.37,34.72]
[1759251225815,4.86832396,205.41,205.37,34.72]
[1759251226133,2.65620991,205.39,205.37,34.72]
[1759251226318,1.70133861,205.39,205.37,34.72]
[1759251226636,1.70133861,205.38,205.37,34.72]
[1759251226832,2.42133861,205.38,205.37,34.72]
[1759251227248,7.29036188,205.38,205.37,34.72]
[1759251227449,26.2682745,205.38,205.29,0.2]
[1759251227750,20.8,205.35,205.3,17.88]
[1759251227917,20.8,205.35,205.31,0.65]
[1759251227918,22.50133861,205.35,205.31,0.65]
[1759251228739,22.50133861,205.35,205.3,17.88]
[1759251228939,22.50133861,205.35,205.31,0.65]
[1759251229147,1.70133861,205.35,205.31,0.65]
[1759251229317,2.42133861,205.35,205.31,0.65]
[1759251229632,1.70133861,205.35,205.31,0.65]
[1759251230128,1.70133861,205.35,205.31,5.52066839]
[1759251230330,1.70133861,205.34,205.3,17.88]
[1759251230540,1.70133861,205.34,205.31,0.65]
[1759251230738,1.70133861,205.35,205.31,0.65]
[1759251231124,2.42133861,205.35,205.3,22.75089875]
[1759251231325,2.42133861,205.35,205.3,23.40089875]
[1759251231633,2.42133861,205.35,205.3,22.75089875]
[1759251231831,2.42133861,205.35,205.3,23.40089875]
[1759251232034,20.8,205.36,205.31,2.35133861]
[1759251232249,20.8,205.36,205.32,0.65]
[1759251232423,20.8,205.36,205.33,0.65]
[1759251232623,20.8,205.36,205.34,34.72]
[1759251233551,23.22133861,205.36,205.34,34.72]
[1759251233735,2.42133861,205.35,205.34,34.72]
[1759251233942,22.50133861,205.36,205.34,34.72]
[1759251234655,23.22133861,205.36,205.34,34.72]
[1759251235152,20.8,205.36,205.34,40.24994575]
[1759251235355,20.8,205.36,205.34,34.72]
[1759251235555,23.22133861,205.36,205.34,34.72]
[1759251235861,1.70133861,205.35,205.34,34.72]
[1759251238067,1.70206096,205.35,205.34,34.72]
[1759251238764,22.50206096,205.36,205.34,39.58997175]
[1759251238947,1.70206096,205.36,205.34,39.58997175]
[1759251239343,1.70206096,205.35,205.34,34.72]
[1759251239960,2.42206096,205.35,205.25,0.86]
[1759251240142,4.87020893,205.33,205.3,34.72]
[1759251240343,1.70206096,205.31,205.3,34.72]
[1759251240533,2.42206096,205.31,205.3,34.72]
[1759251240725,4.87020893,205.33,205.3,34.72]
[1759251240930,1.70206096,205.31,205.3,34.72]
[1759251241566,2.42206096,205.31,205.3,34.72]
[1759251242269,23.22206096,205.31,205.3,34.72]
[1759251242549,22.50206096,205.31,205.3,34.72]
[1759251246859,6.57274431,205.31,205.3,34.72]
[1759251247359,6.57274431,205.31,205.25,15.04308647]
[1759251247360,7.29274431,205.31,205.25,0.2]